bitfinex/quotes_SOLUSD_20211001
["timestamp","ask_amount","ask_price","bid_price","bid_amount"]
[1633100356701,29.01296517,154.06,153.98,477.68396759]
[1633100357500,29.01296517,154.06,153.91,3.42447152]
[1633100357701,29.03384517,154.06,153.91,23.04522305]
[1633100358503,29.03384517,154.06,153.9,3.42817492]
[1633100358704,29.03384517,154.06,153.89,119.94982004]
[1633100359304,31.56747739,154.06,153.89,119.94982004]
[1633100359507,31.56747739,154.06,153.9,21.35946671]
[1633100359704,31.56747739,154.06,153.89,116.5]
[1633100359904,16.2478,154.02,153.89,116.5]
[1633100360104,16.2478,154.02,153.86,3.32183512]
[1633100360307,18.3278,154.02,153.87,3.34606358]
[1633100360704,23.59816388,154.01,153.88,26.62074427]
[1633100360906,23.59816388,154.01,153.88,29.92852662]
[1633100361506,23.59816388,154.01,153.92,385.6861243]
[1633100361706,0.02088,154.03,153.92,385.6861243]
[1633100361905,2.10088,154.06,153.92,385.6861243]
[1633100362806,30.24947793,154.05,153.92,385.6861243]
[1633100363009,2.08,154.04,153.92,385.6861243]
[1633100363208,0.02088,154.03,153.92,385.6861243]
[1633100363408,2.08,154.02,153.92,385.6861243]
[1633100364208,26.62557399,154.01,153.92,385.6861243]
[1633100365207,0.02088,154.0,153.92,385.6861243]
[1633100365613,0.02088,154.03,153.92,385.6861243]
[1633100365810,2.08,154.06,153.92,385.6861243]
[1633100366411,28.58835182,154.05,153.92,413.42596363]
[1633100366609,2.10088,154.04,153.92,413.42596363]
[1633100366810,0.02088,154.03,153.92,413.42596363]
[1633100367610,0.02088,154.03,153.92,385.6861243]
[1633100367811,0.02088,154.04,153.92,385.6861243]
[1633100368011,2.21,154.03,153.92,385.6861243]
[1633100368213,18.47738,154.03,153.92,385.6861243]
[1633100368612,25.49796713,154.02,153.92,415.79372182]
[1633100368816,2.21,154.01,153.92,415.79372182]
[1633100369013,2.21,154.01,153.92,385.6861243]
[1633100369212,18.298,154.01,153.92,385.6861243]
[1633100369620,18.298,154.01,153.86,3.56971769]
[1633100369815,18.298,154.01,153.85,3.59636744]
[1633100370012,18.298,154.01,153.87,27.49183858]
[1633100373114,18.298,154.01,153.87,29.29548205]
[1633100373317,18.298,154.01,153.88,1.88095641]
[1633100374518,16.2515,153.99,153.88,1.88095641]
[1633100374717,25.74789344,153.98,153.88,1.88095641]
[1633100375117,25.74789344,153.98,153.87,29.37277927]
[1633100375319,25.74789344,153.98,153.88,1.88092955]
[1633100375517,25.74789344,153.98,153.87,29.37278795]
[1633100375922,25.74789344,153.98,153.88,340.03091193]
[1633100376118,25.74789344,153.98,153.88,341.91170917]
[1633100376318,25.74789344,153.98,153.88,340.03091193]
[1633100376518,25.74789344,153.98,153.88,341.91170169]
[1633100376720,25.74789344,153.98,153.88,863.8445218]
[1633100377320,91.98789344,153.98,153.88,523.81360987]
[1633100377720,91.98789344,153.98,153.84,1.88125965]
[1633100378321,25.74789344,153.98,153.84,1.88125965]
[1633100378721,25.74789344,153.98,153.85,1.88138654]
[1633100379122,25.74789344,153.98,153.84,23.79657462]
[1633100379522,2.43962717,153.96,153.84,23.79657462]
[1633100379725,24.66289309,153.95,153.85,1.88158633]
[1633100380822,24.66289309,153.95,153.84,21.91514365]
[1633100380823,2.21,153.95,153.87,1.88160587]
[1633100381025,2.21,153.95,153.88,1.88140875]
[1633100381423,2.21,153.95,153.87,1.88148326]
[1633100381824,29.35432745,153.94,153.87,1.88148326]
[1633100382024,31.56432745,153.94,153.87,1.88148326]
[1633100382226,31.56432745,153.94,153.86,1.88163674]
[1633100382825,2.21,153.94,153.85,1.88206519]
[1633100383026,2.21,153.94,153.86,1.88195182]
[1633100383827,28.39934457,153.94,153.87,1.88202218]
[1633100384226,28.39934457,153.94,153.86,1.88215759]
[1633100384628,28.39934457,153.94,153.87,1.88225092]
[1633100385027,2.21,153.94,153.87,1.88225092]
[1633100386026,24.27984523,153.93,153.87,1.88225092]
[1633100386231,2.21,153.92,153.87,1.88225092]
[1633100387727,2.21,153.92,153.85,7.53770817]
[1633100387728,2.21,153.92,153.88,1.88250725]
[1633100388127,2.21,153.92,153.89,1.88237404]
[1633100388328,2.21,153.92,153.88,1.8824653]
[1633100389427,2.21,153.92,153.87,28.371873]
[1633100389628,2.21,153.92,153.86,1.88275677]
[1633100389828,2.21,153.92,153.85,1.88279479]
[1633100390629,25.75838515,153.91,153.84,1.88286294]
[1633100390829,2.21,153.9,153.84,1.88286294]
[1633100392427,2.21,153.9,153.85,1.88277223]
[1633100392628,2.21,153.9,153.84,1.88290381]
[1633100393427,2.21,153.9,153.83,1.88300702]
[1633100395328,2.21,153.9,153.82,1.88312375]
[1633100396329,2.21,153.9,153.83,1.88324811]
[1633100396732,2.21,153.9,153.82,1.8832735]
[1633100396930,16.2665,153.86,153.82,1.8832735]
[1633100397133,16.2665,153.86,153.81,1.88334624]
[1633100397331,2.21,153.87,153.8,1.88339185]
[1633100397531,2.21,153.87,153.82,1.88331141]
[1633100398131,2.21,153.87,153.8,1.88353998]
[1633100398331,2.48614143,153.85,153.78,1.88372421]
[1633100398533,2.21,153.84,153.77,1.88351174]
[1633100398732,0.02088,153.92,153.77,1.88351174]
[1633100398733,2.21,153.86,153.77,1.88351174]
[1633100398932,2.21,153.86,153.81,1.88301414]
[1633100399336,0.02088,153.92,153.81,1.88301414]
[1633100399537,2.21,153.91,153.82,21.46298724]
[1633100399734,2.21,153.91,153.82,23.34598327]
[1633100400133,2.45715071,153.93,153.82,23.34598327]
[1633100400134,0.02088,153.96,153.93,2.45715071]
[1633100400334,37.2329078,154.03,154.0,57.0]
[1633100400538,35.64455292,154.13,154.03,25.64265851]
[1633100400539,55.22,154.08,154.03,25.64265851]
[1633100400736,2.21,154.12,154.0,78.562]
[1633100400934,2.21,154.11,154.09,10.79330034]
[1633100404038,2.21,154.14,154.09,10.79330034]
[1633100404237,2.21,154.14,154.09,10.81635794]
[1633100404843,22.00131444,154.46,154.42,3.76]
[1633100405039,19.54297492,154.49,154.04,23.809]
[1633100405040,104.0,154.49,154.3,1.87715911]
[1633100405239,2.21,154.48,154.38,0.0230576]
[1633100405439,104.0,154.49,154.34,0.02088]
[1633100405640,29.071449,154.48,154.35,2.21]
[1633100405838,47.071449,154.47,154.36,2.21]
[1633100406039,47.071449,154.46,154.37,2.21]
[1633100406239,47.24268,154.45,154.38,2.21]
[1633100406440,47.24268,154.44,154.39,2.21]
[1633100406641,47.24268,154.43,154.4,2.21]
[1633100406840,47.24268,154.42,154.4,2.21]
[1633100407044,47.24268,154.41,154.4,2.21]
[1633100407443,0.00268,154.41,154.4,2.21]
[1633100407645,104.0,154.56,154.4,2.21]
[1633100407844,46.0,154.55,154.24,34.45531119]
[1633100408143,104.0,154.53,154.25,16.41018948]
[1633100408344,24.06375111,154.51,154.3,22.41296257]
[1633100408546,47.24268,154.5,154.3,22.41296257]
[1633100409146,47.24268,154.5,154.3,39.01719604]
[1633100409746,47.24268,154.5,154.3,22.41296257]
[1633100410544,47.24268,154.5,154.31,2.21]
[1633100412546,2.4401776,154.48,154.3,22.41296257]
[1633100412749,21.85028968,154.42,154.28,52.60609288]
[1633100412947,47.228936,154.41,154.28,52.60609288]
[1633100413148,47.228936,154.41,154.25,22.38472416]
[1633100413749,47.2711136,154.41,154.25,22.38472416]
[1633100413951,25.25003696,154.39,154.25,22.38472416]
[1633100414151,47.228936,154.38,154.25,22.38472416]
[1633100414552,62.899936,154.38,154.25,22.38472416]
[1633100414752,29.08720596,154.36,154.25,22.38472416]
[1633100414950,47.228936,154.35,154.25,22.38472416]
[1633100416153,47.228936,154.43,154.25,24.45472416]
[1633100416352,47.228936,154.42,154.25,42.30852233]
[1633100416552,47.228936,154.46,154.31,497.5457024]
[1633100416751,7.5299676,154.47,154.31,403.5737894]
[1633100416953,23.82504066,154.46,154.31,356.8239434]
[1633100417151,23.82504066,154.46,154.31,263.3242514]
[1633100417356,7.5299676,154.47,154.31,169.8245594]
[1633100417556,7.5299676,154.47,154.31,123.0747134]
[1633100417753,66.0,154.46,154.31,30.2240214]
[1633100417952,72.0,154.44,154.25,25.78269733]
[1633100418154,90.0,154.41,154.2,31.92444483]
[1633100418353,21.08,154.46,154.21,18.90049608]
[1633100418553,7.48779,154.47,154.21,47.9866871]
[1633100418754,7.48779,154.47,154.22,45.9166871]
[1633100418953,7.48779,154.47,154.23,2.07]
[1633100419153,7.48779,154.47,154.23,65.00372043]
[1633100419353,7.48779,154.47,154.23,35.91752941]
[1633100419556,25.57545498,154.46,154.24,46.74002043]
[1633100419754,42.81645498,154.46,154.25,2.07]
[1633100419957,42.81645498,154.46,154.25,19.72382941]
[1633100420354,42.81645498,154.46,154.26,17.65382941]
[1633100420554,42.81645498,154.46,154.27,1.07]
[1633100420753,42.85863258,154.46,154.27,1.07]
[1633100420953,42.85863258,154.46,154.43,517.05995117]
[1633100421153,17.2831776,154.46,154.43,423.53644817]
[1633100421354,0.0421776,154.46,154.43,329.98913417]
[1633100421555,0.0421776,154.5,154.43,236.44182017]
[1633100421753,0.0421776,154.5,154.43,189.66816317]
[1633100421954,0.0421776,154.5,154.43,96.12084917]
[1633100422154,0.0421776,154.5,154.43,2.57353517]
[1633100422355,0.0421776,154.5,154.28,16.1885]
[1633100422356,25.99711597,154.47,154.23,4.89672052]
[1633100422558,25.99711597,154.47,154.24,29.23607723]
[1633100422755,25.99711597,154.47,154.29,17.17327506]
[1633100422954,102.0,154.48,154.3,2.07]
[1633100423154,47.246118,154.47,154.3,2.07]
[1633100423355,47.246118,154.47,154.31,17.17327506]
[1633100423556,47.246118,154.46,154.32,2.07]
[1633100423754,47.246118,154.49,154.33,16.1838]
[1633100423955,47.246118,154.48,154.34,2.07]
[1633100424154,47.246118,154.47,154.34,19.24327506]
[1633100424355,47.246118,154.49,154.34,19.24327506]
[1633100424554,47.246118,154.48,154.35,17.17327506]
[1633100424754,21.97271435,154.47,154.36,2.07]
[1633100425157,47.246118,154.46,154.36,2.07]
[1633100425757,47.270193,154.45,154.36,2.07]
[1633100425956,47.270193,154.44,154.36,19.24327506]
[1633100426155,47.270193,154.43,154.36,19.24327506]
[1633100426357,47.270193,154.52,154.36,19.24327506]
[1633100426556,47.270193,154.42,154.36,19.24327506]
[1633100426755,47.270193,154.51,154.36,19.24327506]
[1633100426956,47.270193,154.5,154.36,19.24327506]
[1633100427158,47.270193,154.49,154.36,19.24327506]
[1633100427358,47.270193,154.58,154.36,19.24327506]
[1633100427556,47.270193,154.48,154.36,19.24327506]
[1633100427760,27.30040692,154.57,154.36,52.45327506]
[1633100427958,47.270193,154.47,154.36,52.45327506]
[1633100428159,47.270193,154.46,154.36,52.45327506]
[1633100428360,0.0421776,154.56,154.36,52.45327506]
[1633100428560,47.270193,154.55,154.36,52.45327506]
[1633100428760,47.3123706,154.56,154.36,19.24327506]
[1633100428960,64.73733407,154.55,154.36,2.07]
[1633100429159,71.08749244,154.54,154.36,2.07]
[1633100429364,47.3123706,154.53,154.36,2.07]
[1633100429563,0.0421776,154.47,154.36,2.07]
[1633100429760,22.24459418,154.46,154.31,2.07]
[1633100429961,0.0421776,154.45,154.31,2.07]
[1633100430161,26.1123559,154.43,154.31,2.07]
[1633100430364,47.270193,154.42,154.31,2.07]
[1633100430562,47.270193,154.42,154.38,433.34941026]
[1633100432764,47.297738,154.46,154.38,433.34941026]
[1633100433164,72.97721079,154.46,154.38,433.34941026]
[1633100433565,47.3399156,154.45,154.38,433.34941026]
[1633100433766,25.42739014,154.43,154.38,433.34941026]
[1633100434165,47.297738,154.42,154.38,433.34941026]
[1633100434968,47.297738,154.41,154.38,433.34941026]
[1633100435166,24.12177186,154.4,154.37,8.50542442]
[1633100435368,47.297738,154.39,154.37,8.50542442]
[1633100435767,47.297738,154.46,154.37,8.50542442]
[1633100435969,47.297738,154.38,154.37,8.50542442]
[1633100436167,47.297738,154.47,154.37,8.50542442]
[1633100436368,47.301183,154.46,154.37,8.50542442]
[1633100436567,47.301183,154.45,154.37,8.50542442]
[1633100437167,47.301183,154.45,154.38,8.48199142]
[1633100437768,47.301183,154.5,154.38,8.48199142]
[1633100437970,47.301183,154.44,154.38,8.48199142]
[1633100438173,47.301183,154.43,154.38,8.48199142]
[1633100438372,0.02088,154.51,154.38,8.48199142]
[1633100438373,47.301183,154.42,154.38,8.48199142]
[1633100438573,75.06101521,154.5,154.38,8.48199142]
[1633100438772,58.26989521,154.7,154.39,82.0]
[1633100438971,23.12847085,154.63,154.39,40.374959]
[1633100439171,0.02088,154.57,154.39,40.374959]
[1633100439373,27.00278784,154.55,154.39,40.374959]
[1633100439773,47.301183,154.54,154.39,40.374959]
[1633100440374,47.301183,154.54,154.39,8.374959]
[1633100441373,47.301183,154.54,154.38,8.48199142]
[1633100441575,47.301183,154.54,154.37,2.07]
[1633100441774,27.00278784,154.55,154.37,2.07]
[1633100441975,27.00278784,154.55,154.37,2.0912976]
[1633100442976,27.00278784,154.55,154.47,490.74118995]
[1633100443378,27.00278784,154.55,154.47,397.06437595]
[1633100443575,27.00278784,154.55,154.47,350.22596895]
[1633100443775,27.00278784,154.55,154.47,303.38756195]
[1633100443976,27.00278784,154.55,154.31,93.79392693]
[1633100443977,79.0,154.54,154.35,0.02088]
[1633100444177,79.0,154.54,154.36,2.07]
[1633100444378,79.0,154.54,154.46,386.78324516]
[1633100444576,47.311522,154.53,154.46,386.78324516]
[1633100444776,47.311522,154.6,154.46,386.78324516]
[1633100445377,69.70336562,154.6,154.46,386.78324516]
[1633100445576,22.39184362,154.6,154.46,386.78324516]
[1633100445778,47.311522,154.59,154.46,386.78324516]
[1633100446979,47.325315,154.64,154.46,386.78324516]
[1633100447582,47.325315,154.64,154.46,388.85324516]
[1633100447782,22.87466021,154.66,154.46,388.87412516]
[1633100448381,79.1979,154.68,154.48,0.02088]
[1633100448587,79.1979,154.68,154.48,2.09088]
[1633100448783,7.50867,154.69,154.48,2.07]
[1633100448983,0.02088,154.69,154.49,17.72710819]
[1633100449183,0.02088,154.76,154.5,2.7177048]
[1633100449383,0.02088,154.76,154.5,33.68266078]
[1633100449586,0.02088,154.76,154.51,50.22355264]
[1633100449785,29.52150638,154.77,154.53,0.39391699]
[1633100449985,0.02088,154.77,154.54,2.07]
[1633100450185,0.02088,154.78,154.55,0.02088]
[1633100450389,0.02088,154.81,154.56,2.07]
[1633100450584,0.02088,154.81,154.57,0.02088]
[1633100450786,0.02088,154.81,154.58,2.07]
[1633100450987,27.60651886,154.81,154.58,2.09088]
[1633100451188,0.02088,154.8,154.58,2.09088]
[1633100451386,27.58563886,154.81,154.59,0.02088]
[1633100451585,27.58563886,154.81,154.6,2.07]
[1633100451784,27.58563886,154.81,154.61,0.02088]
[1633100451985,27.58563886,154.81,154.62,2.07]
[1633100452185,27.58563886,154.81,154.62,2.09088]
[1633100452385,0.02088,154.85,154.62,2.09088]
[1633100452587,0.02088,154.9,154.62,51.65915231]
[1633100452786,0.02088,154.91,154.62,51.63827231]
[1633100452986,0.02088,154.91,154.63,0.02088]
[1633100453186,0.02088,154.91,154.64,2.07]
[1633100453386,22.66476936,154.91,154.65,0.02088]
[1633100453587,0.02088,154.9,154.66,2.07]
[1633100454389,26.94723448,154.87,154.66,2.07]
[1633100454594,26.94723448,154.87,154.67,0.02088]
[1633100454793,26.94723448,154.87,154.68,2.07]
[1633100455192,26.94723448,154.87,154.69,0.02088]
[1633100455392,26.94723448,154.87,154.69,2.07]
[1633100456006,73.66931448,154.92,154.7,55.0]
[1633100456213,29.16313615,154.91,154.71,2.07]
[1633100456419,29.16313615,154.91,154.74,0.02088]
[1633100456613,29.16313615,154.91,154.71,2.07]
[1633100456810,104.0,154.9,154.71,2.07]
[1633100457011,104.0,154.9,154.72,0.02088]
[1633100457210,104.0,154.9,154.71,2.07]
[1633100459411,0.02088,154.93,154.71,19.97188597]
[1633100459612,6.5,155.0,154.71,19.97188597]
[1633100459613,0.02088,154.99,154.72,35.10785958]
[1633100459810,0.02088,154.99,154.73,2.48301282]
[1633100460010,0.02088,154.99,154.74,0.02088]
[1633100460212,29.15121819,154.99,154.75,2.07]
[1633100460410,29.15121819,154.99,154.76,0.44562728]
[1633100460611,29.15121819,154.99,154.77,2.07]
[1633100460810,29.15121819,154.99,154.78,0.02088]
[1633100461009,29.15121819,154.99,154.79,2.07]
[1633100461210,29.15121819,154.99,154.79,2.09088]
[1633100461410,29.15121819,154.99,154.79,19.99276597]
[1633100461613,29.15121819,154.99,154.8,0.02088]
[1633100461814,29.15121819,154.99,154.81,2.07]
[1633100462014,29.15121819,154.99,154.82,0.02088]
[1633100462214,29.15121819,154.99,154.83,2.07]
[1633100464220,29.15121819,154.99,154.83,35.13403513]
[1633100464416,29.15121819,154.99,154.83,2.07]
[1633100465718,29.15121819,154.99,154.83,2.09088]
[1633100466519,29.15121819,154.99,154.83,2.07]
[1633100466918,0.02088,154.98,154.83,2.07]
[1633100467719,0.02088,154.98,154.77,0.00792402]
[1633100467720,2.55429534,154.93,154.77,0.00792402]
[1633100467919,2.55429534,154.93,154.74,0.02088]
[1633100467920,2.43070779,154.91,154.74,0.02088]
[1633100468119,2.4462913,154.85,154.7,2.07]
[1633100468324,26.20775306,154.84,154.7,2.07]
[1633100468522,26.22863306,154.84,154.7,2.07]
[1633100468920,26.22863306,154.84,154.65,2.07]
[1633100469119,0.02088,154.83,154.65,2.07]
[1633100469520,26.20775306,154.84,154.65,2.07]
[1633100469719,26.20775306,154.84,154.65,30.02446284]
[1633100469720,26.22863306,154.84,154.65,30.02446284]
[1633100469919,26.22863306,154.84,154.69,408.91632582]
[1633100470520,26.20775306,154.84,154.69,408.91632582]
[1633100470721,26.20775306,154.84,154.69,410.98632582]
[1633100470921,26.20775306,154.84,154.67,516.85805965]
[1633100472723,0.02088,154.83,154.67,516.85805965]
[1633100473325,0.02088,154.83,154.64,2.07]
[1633100473524,0.45312619,154.83,154.64,2.07]
[1633100473724,26.20775306,154.84,154.64,2.07]
[1633100474530,26.20775306,154.84,154.65,0.02088]
[1633100474727,26.20775306,154.84,154.64,2.09088]
[1633100475928,2.42731084,154.8,154.64,2.07]
[1633100476128,27.34739854,154.79,154.64,2.07]
[1633100476730,27.34739854,154.79,154.65,0.02088]
[1633100477133,27.34739854,154.79,154.62,2.07]
[1633100477330,27.34739854,154.79,154.62,2.09088]
[1633100477937,27.34739854,154.79,154.62,0.02088]
[1633100478131,27.34739854,154.79,154.58,0.02088]
[1633100478331,27.34739854,154.79,154.59,2.2]
[1633100478533,27.34739854,154.79,154.6,0.02088]
[1633100478731,27.34739854,154.79,154.61,2.2]
[1633100478932,27.34739854,154.79,154.62,0.02088]
[1633100479131,27.34739854,154.79,154.63,2.2]
[1633100479532,29.54739854,154.79,154.63,2.2]
[1633100479735,0.02088,154.78,154.63,2.2]
[1633100479932,2.2,154.77,154.63,2.2]
[1633100480134,2.2,154.77,154.55,4.26671082]
[1633100480136,24.64437639,154.76,154.55,4.26671082]
[1633100480333,24.64437639,154.76,154.53,0.02088]
[1633100480334,2.22088,154.75,154.56,2.2]
[1633100480732,7.48779,154.74,154.56,2.2]
[1633100480932,7.48779,154.74,154.53,2.22088]
[1633100480933,26.96657543,154.73,154.53,2.22088]
[1633100481132,0.02088,154.72,154.53,2.2]
[1633100481335,2.2,154.71,154.53,2.2]
[1633100481535,29.92093185,154.7,154.49,2.2]
[1633100481734,68.46088,154.69,154.49,2.2]
[1633100481935,7.50867,154.68,154.49,2.2]
[1633100482134,2.59466023,154.66,154.49,2.2]
[1633100482342,9.70867,154.65,154.44,6.72322816]
[1633100482533,24.69807657,154.64,154.44,6.72322816]
[1633100482734,2.2,154.63,154.44,6.72322816]
[1633100482933,2.2,154.63,154.44,2.2]
[1633100483534,2.2,154.63,154.44,360.68366578]
[1633100483737,2.2,154.63,154.45,0.02088]
[1633100483934,2.2,154.63,154.46,2.2]
[1633100484533,2.2,154.63,154.42,2.22088]
[1633100484735,9.68779,154.63,154.42,2.22088]
[1633100484940,28.41979,154.63,154.42,2.22088]
[1633100486938,9.68779,154.63,154.42,2.22088]
[1633100488137,9.68779,154.63,154.43,0.02088]
[1633100488342,9.68779,154.63,154.44,2.2]
[1633100488538,9.68779,154.63,154.45,0.02088]
[1633100488738,9.68779,154.63,154.45,2.22088]
[1633100491547,9.68779,154.63,154.47,347.61676829]
[1633100491743,9.68779,154.63,154.48,2.2]
[1633100492544,2.2,154.63,154.48,2.2]
[1633100492745,0.02088,154.68,154.48,2.2]
[1633100492949,2.2,154.67,154.48,2.2]
[1633100493146,2.2,154.67,154.5,16.1665]
[1633100493345,2.2,154.67,154.51,2.22088]
[1633100493545,30.49551233,154.67,154.52,0.02088]
[1633100493746,2.2,154.67,154.53,2.2]
[1633100493946,2.2,154.71,154.53,2.22088]
[1633100494347,2.2,154.71,154.55,0.02088]
[1633100494545,2.2,154.71,154.56,2.2]
[1633100494748,2.2,154.71,154.57,2.2]
[1633100494949,24.32659092,154.7,154.58,0.02088]
[1633100495552,24.32659092,154.7,154.57,2.2]
[1633100496547,2.2,154.69,154.56,509.83773254]
[1633100497948,2.2,154.69,154.57,0.02088]
[1633100498152,2.2,154.72,154.57,0.02088]
[1633100498349,2.2,154.74,154.58,2.2]
[1633100498550,2.2,154.74,154.59,0.02088]
[1633100498749,2.2,154.74,154.6,2.2]
[1633100499548,9.51247,154.78,154.6,2.2]
[1633100499750,9.51247,154.78,154.61,0.02088]
[1633100499949,9.51247,154.78,154.62,2.2]
[1633100500349,21.73820035,154.77,154.62,2.2]
[1633100500550,2.2,154.76,154.62,2.2]
[1633100503153,83.628,154.76,154.58,2.22088]
[1633100503553,17.388,154.76,154.58,2.2]
[1633100503953,17.388,154.76,154.58,2.22088]
[1633100504955,2.43994252,154.72,154.56,509.83773254]
[1633100505155,30.50420048,154.71,154.56,509.83773254]
[1633100505354,66.26088,154.7,154.56,509.83773254]
[1633100505556,2.2,154.69,154.56,509.83773254]
[1633100505755,29.87687342,154.68,154.56,509.83773254]
[1633100505959,2.2,154.67,154.48,2.2]
[1633100506158,2.2,154.67,154.49,0.02088]
[1633100506355,2.2,154.67,154.5,2.2]
[1633100506555,2.2,154.67,154.51,0.02088]
[1633100506754,2.2,154.67,154.51,2.22088]
[1633100506957,2.2,154.67,154.51,2.2]
[1633100508156,2.2,154.67,154.52,0.02088]
[1633100508356,29.87687342,154.68,154.53,2.2]
[1633100511060,9.51247,154.71,154.53,16.715]
[1633100511259,7.31247,154.71,154.58,414.64623396]
[1633100511459,2.22088,154.75,154.6,0.87207767]
[1633100511658,2.2,154.77,154.61,2.2]
[1633100511860,2.22088,154.8,154.62,2.2]
[1633100512060,0.02088,154.8,154.63,2.2]
[1633100512258,2.2,154.86,154.64,2.51604608]
[1633100512460,2.2,154.86,154.66,1.11048145]
[1633100512658,2.2,154.86,154.67,2.2]
[1633100512858,2.2,154.89,154.68,0.02088]
[1633100513067,25.5461026,154.88,154.69,2.2]
[1633100513260,25.5461026,154.88,154.7,0.02088]
[1633100513459,2.2,154.87,154.71,1.2]
[1633100513860,27.40735329,154.85,154.71,1.2]
[1633100514061,2.2,154.84,154.71,1.2]
[1633100514663,27.40735329,154.85,154.71,1.2]
[1633100515262,7.31247,154.86,154.74,0.02088]
[1633100515464,2.2,154.92,154.74,2.22088]
[1633100515663,2.2,154.92,154.75,0.02088]
[1633100515863,2.2,154.92,154.76,2.2]
[1633100516065,7.31247,154.91,154.76,2.2]
[1633100516265,2.2,154.9,154.76,2.2]
[1633100518064,33.6744029,154.91,154.76,2.2]
[1633100518666,33.6744029,154.91,154.77,0.02088]
[1633100518871,33.6744029,154.91,154.78,2.2]
[1633100519067,7.31247,154.91,154.79,0.02088]
[1633100519265,77.9439,154.96,154.8,2.2]
[1633100520068,21.74274859,154.95,154.81,0.02088]
[1633100520265,21.74274859,154.95,154.81,2.22088]
[1633100520464,21.74274859,154.95,154.82,0.02088]
[1633100520666,21.74274859,154.95,154.83,2.2]
[1633100520864,21.74274859,154.95,154.83,2.22088]
[1633100521267,21.74274859,154.95,154.83,2.2]
[1633100525968,75.7439,154.96,154.83,2.2]
[1633100526572,75.7439,154.96,154.84,0.02088]
[1633100526769,75.7439,154.96,154.85,2.2]
[1633100526968,75.7439,154.96,154.95,8.09576985]
[1633100527169,5.5,155.0,154.95,8.09576985]
[1633100527170,22.14922172,154.99,154.95,8.09576985]
[1633100527371,5.5,155.0,154.95,8.09576985]
[1633100528371,33.54919898,155.0,154.95,8.09576985]
[1633100528971,33.54919898,155.0,154.95,0.00576985]
[1633100529872,35.74919898,155.0,154.95,0.00576985]
[1633100531273,26.96485009,154.97,154.95,0.00576985]
[1633100531470,108.67071027,154.96,154.95,0.00576985]
[1633100531675,182.22318027,154.96,154.95,0.00576985]
[1633100531876,115.98318027,154.96,154.95,0.00576985]
[1633100532074,113.51247,154.96,154.95,0.00576985]
[1633100532274,115.91485683,154.96,154.95,0.00576985]
[1633100532675,115.91485683,154.96,154.76,0.02088]
[1633100532876,66.24,154.95,154.76,0.02088]
[1633100533075,28.27561296,154.93,154.76,0.02088]
[1633100533275,5.5,155.0,154.94,0.02088]
[1633100533479,5.5,155.0,154.94,2.22088]
[1633100533677,5.5,155.0,154.95,0.02088]
[1633100533876,5.5,155.0,154.96,2.2]
[1633100534076,5.5,155.0,154.97,0.02088]
[1633100534875,5.5,155.0,154.98,2.2]
[1633100535075,5.5,155.0,154.99,0.02088]
[1633100536276,47.5,155.0,154.99,0.02088]
[1633100536476,47.5,155.0,154.95,2.2]
[1633100537075,75.98153935,155.0,154.95,2.2]
[1633100538476,47.5,155.0,154.91,2.2]
[1633100538676,49.99197912,155.0,154.87,2.2]
[1633100538876,47.5,155.0,154.87,2.2]
[1633100539480,23.82674855,154.99,154.87,2.2]
[1633100540076,27.84386202,154.96,154.87,2.2]
[1633100543478,27.84386202,154.96,154.86,2.2]
[1633100545680,51.58286202,154.96,154.86,2.2]
[1633100545882,2.53548628,154.93,154.81,2.2]
[1633100546083,28.95933282,154.92,154.81,2.2]
[1633100546283,48.41233282,154.92,154.81,2.2]
[1633100546483,48.41233282,154.92,154.8,1.64839815]
[1633100546685,48.41233282,154.92,154.81,1.63945849]
[1633100547683,28.95933282,154.92,154.81,1.63945849]
[1633100547885,7.31247,154.96,154.82,3.82774647]